Cogmind - Beta 9.4 @@@ ROGUE MODE // 2020.01.29 @ 16:25:43 // Winter2019/RPGLIKE Player: spruce (@macklemurr) Result: Destroyed by Y-45 Defender with Heavy Assault Rifle Performance ------------- Evolutions (1) 500 Regions Visited (3) 600 Robots Destroyed (54) 270 Value Destroyed (1133) 1133 Prototype IDs (1) 20 Alien Tech Used (0) 0 Bonus (190) 190 TOTAL SCORE: 2713 Bonus ------- High Alert Combat Kills 55 Follower Combat Kills 160 Friendly Fire -25 Cogmind --------- Core Integrity 0/600 Matter 230/300 Energy 280/280 System Corruption 0% Temperature Cool (9) Movement Rolling (80) Location -9/Materials Parts ------- > --- POWER (1) -------- Cooled Ion Engine > --- PROPULSION (2) --- Wheel > --- UTILITY (4) ------ Structural Scanner Improved Signal Interpreter > --- WEAPON (2) ------- EM Pulse Gun Heavy Mace > --- INVENTORY (2) ---- Cooled Ion Engine Mini Grenade Launcher Peak State ------------ > --- POWER ------------ Cooled Ion Engine > --- PROPULSION ------- Wheel VTOL Module > --- UTILITY ---------- Structural Scanner Improved Signal Interpreter Improved Terrain Scanner > --- WEAPON ----------- EM Pulse Gun Heavy Mace > --- INVENTORY -------- Cooled Ion Engine Mini Grenade Launcher [Rating: 15] Favorites ----------- Power Light Ion Engine Engine Light Ion Engine Power Core Light Nuclear Core Propulsion Flight Unit Wheel Wheel Flight Unit Flight Unit Utility Improved Terrain Scanner Device Improved Terrain Scanner Processor Improved Signal Interpreter Weapon Assault Rifle Energy Gun Medium Laser Ballistic Gun Assault Rifle Launcher Mini Grenade Launcher Impact Weapon Heavy Mace Build | -11 -10 -10 -9 ------- Run | Scr Mat Min Mat Slots Evolved 5 | 3 . . 2 Power . | . . . . Propulsion 1 | 1 . . . Utility 3 | 1 . . 2 Weapon 1 | 1 . . . Parts Attached 24 | 5 7 4 8 Power 3 | 1 . 1 1 Engine 2 | 1 . . 1 Core 1 | . . 1 . Reactor . | . . . . Propulsion 6 | 2 2 . 2 Treads . | . . . . Leg . | . . . . Wheel 3 | 2 . . 1 Hover . | . . . . Flight 3 | . 2 . 1 Utility 4 | . 3 . 1 Device 2 | . 2 . . Storage . | . . . . Processor 2 | . 1 . 1 Hackware . | . . . . Protection . | . . . . Artifact . | . . . . Weapon 11 | 2 2 3 4 Energy Gun 4 | 1 . 1 2 Energy Cannon . | . . . . Ballistic Gun 3 | 1 1 1 . Ballistic Cannon . | . . . . Launcher 3 | . 1 1 1 Special Weapon . | . . . . Impact Weapon 1 | . . . 1 Slashing Weapon . | . . . . Piercing Weapon . | . . . . Special Melee Weapon . | . . . . Unidentified Prototypes 1 | . . . 1 Parts Lost 5 | . . 1 4 Power 1 | . . . 1 Propulsion 2 | . . . 2 Utility 1 | . . . 1 Weapon 1 | . . 1 . Highest Loss Streak 2 | . . 1 2 Average Slot Usage (%) 93 | . 93 99 90 Engine 10 | . 14 9 9 Core 2 | . . 4 2 Wheel 1 | . . . 2 Flight 24 | . 27 28 20 Device 23 | . 19 28 23 Processor 3 | . 2 . 7 Energy Gun 11 | . 14 4 13 Ballistic Gun 12 | . 11 19 8 Launcher 2 | . 2 3 1 Naked Turns . | . . . . Heaviest Build 15 | 7 9 11 15 Greatest Support 15 | 8 13 13 15 Greatest Overweight (x) 1 | . . . 1 Average Overweight (x) . | . . . . Largest Inventory Capacity 2 | 2 2 2 2 Average Capacity 1 | 1 2 2 2 Most Carried 2 | 1 2 2 2 Average Carried 1 | . 1 1 1 Final Capacity 2 | 2 2 2 2 Final Carried 2 | 1 2 1 2 Class Distribution -------------------- 47% | Scout 33% | Mutant 7% | Hacker-Scout 5% | Hacker-Mutant 3% | Hacker-Skirmisher Dominant Class ---------------- Mutant | -10/Materials Scout | -10/Mines Scout | -9/Materials Resources | -11 -10 -10 -9 ----------- Run | Scr Mat Min Mat Matter Collected 919 | 265 236 117 301 Remotely . | . . . . Salvage Created 1637 | 81 507 130 919 Parts 107 | . 45 5 57 Haulers Intercepted 4 | . 2 . 2 Recyclers Shooed 2 | . 1 . 1 Parts Field Recycled . | . . . . Retrieved Matter . | . . . . Parts Self-Destructed . | . . . . Prevented . | . . . . Kills | -11 -10 -10 -9 ------- Run | Scr Mat Min Mat Combat Hostiles Destroyed 33 | . 12 3 18 Guns 26 | . 9 3 14 AOE 6 | . 3 . 3 Classes Destroyed 12 | 1 7 1 3 Worker 3 | . 1 . 2 Builder 5 | . 2 1 2 Tunneler 1 | . 1 . . Hauler 4 | . 2 . 2 Recycler 2 | 1 1 . . Mechanic 1 | . . . 1 Watcher 5 | . 2 . 3 Swarmer 12 | . 9 . 3 Grunt 13 | . 3 1 9 Brawler 1 | . . . 1 Sentry 5 | . . . 5 Demolisher 2 | . . 2 . Best Kill Streak 8 | 1 8 3 8 Combat Bots Only 3 | . 3 2 3 Max Kills in Single Turn 3 | 1 3 1 1 Gunslinging 1 | . 1 . . Exploded 3 | . 3 . 1 Melee . | . . . . Uniques/NPCs Destroyed . | . . . . Combat | -11 -10 -10 -9 -------- Run | Scr Mat Min Mat Damage Taken 1886 | . 304 439 1143 Core 1538 | . 257 365 916 Absorbed by Shields . | . . . . Redirected to Core 1173 | . 157 254 762 Core Remaining (%) 74 | 100 . 49 . Volleys Fired 194 | 5 63 19 107 Largest 2 | 2 2 2 2 Hottest 90 | 70 70 70 90 Shots Fired 357 | 10 115 36 196 Gun 349 | 10 114 35 190 Cannon . | . . . . Launcher 8 | . 1 1 6 Special . | . . . . Kinetic 158 | 5 52 24 77 Thermal 167 | 5 62 11 89 Explosive 8 | . 1 1 6 Electromagnetic 24 | . . . 24 Robot Hit Streak 13 | 7 10 13 13 Robot Miss Streak 7 | 1 7 2 4 Penetration Max . | . . . . Secondary Targets 4 | . 2 . 2 Max Gunslinging Chain 1 | . 1 . 1 Shots Hit Robots 255 | 9 75 30 141 Core Hits 96 | 2 28 13 53 Critical Hits 1 | . . . 1 Critical Kills . | . . . . Critical Parts Destroyed 1 | . . . 1 Melee Attacks 6 | . . . 6 Impact 6 | . . . 6 Slashing . | . . . . Piercing . | . . . . Sneak Attacks . | . . . . Combat Hostiles . | . . . . Follow-up Attacks . | . . . . Damage Inflicted 3791 | 114 1031 460 2186 Guns 3001 | 114 857 358 1672 Cannons . | . . . . Explosions 731 | . 174 102 455 Melee 59 | . . . 59 Ramming . | . . . . Kinetic 1442 | 62 388 245 747 Thermal 1412 | 52 469 113 778 Explosive 645 | . 174 102 369 Electromagnetic 233 | . . . 233 Impact 59 | . . . 59 Slashing . | . . . . Piercing . | . . . . Highest Corruption . | . . . . Average Corruption . | . . . . Corruption Purged . | . . . . Overload Shots . | . . . . Overflow Damage 35 | . . . 35 Projectiles . | . . . . Explosions 35 | . . . 35 Melee . | . . . . Knockbacks . | . . . . Impact . | . . . . Kinetic . | . . . . Secondary . | . . . . Self-Inflicted Damage 139 | . . 12 127 Shots 5 | . . 1 4 Rammed . | . . . . Targets Rammed . | . . . . Kicked . | . . . . Crushed . | . . . . Highest Temperature 240 | 45 180 104 240 Average Temperature 56 | 22 52 49 78 Received Heat Transfer 555 | . 90 81 384 Effects 1 | . . . 1 Interference 1 | . . . 1 Siege Activations . | . . . . Robots Corrupted 1 | . . . 1 Combat Hostiles 1 | . . . 1 Parts Fried 2 | . . . 2 Impact Corruptions . | . . . . Robots Melted . | . . . . Combat Hostiles . | . . . . Parts Melted 3 | . 2 1 . Heat Transferred 3985 | 148 1369 333 2135 Parts Sabotaged . | . . . . Parts Stolen . | . . . . Parts Stripped . | . . . . Power Chain Reactions 2 | . . . 2 Missiles Intercepted . | . . . . Alert | -11 -10 -10 -9 ------- Run | Scr Mat Min Mat Peak Influence 590 | 5 417 127 590 Average Influence 201 | 1 186 74 306 Maximum Alert Level 2 | . 2 . 2 Low Security (%) 56 | 100 54 100 28 Level 1 30 | . 45 . 42 Level 2 12 | . . . 28 Level 3 . | . . . . Level 4 . | . . . . Level 5 . | . . . . High Security . | . . . . Max Security . | . . . . Squads Dispatched 5 | . 2 . 3 Investigation 3 | . 2 . 1 Extermination . | . . . . Reinforcement 2 | . . . 2 Assault . | . . . . Garrison . | . . . . Intercept . | . . . . Construction Impeded . | . . . . Haulers Reinforced . | . . . . Stealth | -11 -10 -10 -9 --------- Run | Scr Mat Min Mat Distress Signals 6 | . 3 . 3 Communications Jammed . | . . . . Distress Signals . | . . . . Times Spotted 56 | . 17 6 33 Peak Tracking Total 8 | . 4 8 4 Tactical Retreats 5 | . . . 5 Traps | -11 -10 -10 -9 ------- Run | Scr Mat Min Mat Traps Triggered . | . . . . Indirectly . | . . . . Trap Hack Attempts . | . . . . Triggered . | . . . . Disarmed . | . . . . Reprogrammed . | . . . . Reused . | . . . . Traps Extracted . | . . . . Installed . | . . . . Triggered . | . . . . Machines | -11 -10 -10 -9 ---------- Run | Scr Mat Min Mat Machines Disabled 3 | . 1 . 2 Max in Single Turn 2 | . 1 . 2 Machines Sabotaged . | . . . . Garrisons Compromised . | . . . . Overloaded Fab Kills . | . . . . Fab Network Shutdowns . | . . . . Hacking | -11 -10 -10 -9 --------- Run | Scr Mat Min Mat Machines Accessed 11 | . 6 . 5 Terminals 9 | . 5 . 4 Fabricators . | . . . . Repair Stations . | . . . . Recycling Units 2 | . 1 . 1 Scanalyzers . | . . . . Garrison Access . | . . . . Total Hacks 23 | . 12 . 11 Successful 11 | . 5 . 6 Failed 11 | . 6 . 5 Catastrophic 1 | . . . 1 Database Lockouts 2 | . 2 . . Manual 20 | . 11 . 9 Terminals 21 | . 11 . 10 Fabricators . | . . . . Repair Stations . | . . . . Recycling Units 2 | . 1 . 1 Scanalyzers . | . . . . Garrison Access . | . . . . Terminal Hacks 8 | . 3 . 5 Robot Analysis 4 | . 2 . 2 Branch Access Points 1 | . . . 1 Unreport Threat 1 | . 1 . . Reinforcement Status 1 | . . . 1 Recall Reinforcements 1 | . . . 1 Fabricator Hacks . | . . . . Repair Station Hacks . | . . . . Recycling Unit Hacks . | . . . . Scanalyzer . | . . . . Garrison Access Hacks . | . . . . Unauthorized Hacks 8 | . 6 . 2 Terminals 1 | . 1 . . Disrupt 1 | . 1 . . Fabricators . | . . . . Repair Stations . | . . . . Recycling Units 2 | . 1 . 1 Tunnel 2 | . 1 . 1 Scanalyzers . | . . . . Garrison Access . | . . . . Data Cores Recovered . | . . . . Used . | . . . . Hacking Detections 8 | . 4 . 4 Full Trace Events . | . . . . Feedback Events . | . . . . Feedback Blocked . | . . . . Robot Schematics Acquired . | . . . . Robots Built . | . . . . Matter . | . . . . Time . | . . . . Total Robot Build Rating . | . . . . Part Schematics Acquired . | . . . . Parts Built . | . . . . Matter . | . . . . Time . | . . . . Total Part Build Rating . | . . . . Parts Repaired . | . . . . Time . | . . . . Parts Recycled . | . . . . Recycled Matter . | . . . . Retrieved Matter . | . . . . Retrieved Components . | . . . . Parts Scanalyzed . | . . . . Part Schematics Acquired . | . . . . Parts Damaged . | . . . . Bothacking | -11 -10 -10 -9 ------------ Run | Scr Mat Min Mat Used RIF Installer . | . . . . Robots Hacked . | . . . . Non-combat . | . . . . Combat . | . . . . Robot Hacks Applied . | . . . . Relay Couplers Released . | . . . . Robots Rewired . | . . . . Allies Hacked . | . . . . Hacks Repelled . | . . . . Allies | -11 -10 -10 -9 -------- Run | Scr Mat Min Mat Total Allies 3 | . . 3 . Largest Group 3 | . . 3 2 Highest-Rated Group 40 | . . 40 32 Highest-Rated Ally 16 | . . 16 16 Total Orders . | . . . . Ally Attacks 31 | . . 3 28 Total Damage 409 | . . 28 381 Kills 6 | . . 1 5 Allies Corrupted . | . . . . Allies Melted . | . . . . Intel | -11 -10 -10 -9 ------- Run | Scr Mat Min Mat Robot Analysis Total 4 | . 2 . 2 Derelict Logs Recovered . | . . . . Drone Launches . | . . . . Drone Recoveries . | . . . . Exploration | -11 -10 -10 -9 ------------- Run | Scr Mat Min Mat Turns Passed 1670 | 53 472 440 705 Spaces Moved 1780 | 54 554 593 579 Core 70 | 54 16 . . Treads . | . . . . Legs . | . . . . Wheels 118 | . . . 118 Hover . | . . . . Flight 1592 | . 538 593 461 Fastest Speed 37 | 50 37 37 37 Average Speed 40 | 50 37 37 46 Slowest Speed 120 | 50 50 37 120 Overloaded Moves . | . . . . Propulsion Burnouts . | . . . . Robots Hopped 29 | . 2 15 12 Cave-ins Triggered . | . . . . Exploration Rate (%) 59 | 3 87 96 51 Regions Visited 3 Branch Regions 1 Pre-discovered Areas 2 | . 1 . 1 Known Exits Taken . | . . . . Unknown Exits Taken 3 | 1 1 1 . Scrap Searched 1 | . . 1 . Spaces Dug 6 | . . . 6 Terrain Destroyed 43 | . 3 10 30 Melee . | . . . . Projectile . | . . . . AOE 43 | . 3 10 30 Actions | -11 -10 -10 -9 --------- Run | Scr Mat Min Mat Total 2326 | 66 699 763 798 Wait 286 | 2 60 151 73 Move 1725 | 53 549 567 556 Hop 23 | . 2 10 11 Pick Up 8 | 1 2 3 2 Fast Attach 18 | 5 5 1 7 Attach 1 | . . 1 . Detach 1 | . . . 1 Swap 6 | . 2 2 2 Drop 14 | . 4 4 6 Fire 194 | 5 63 19 107 Melee 6 | . . . 6 Ram . | . . . . Kick . | . . . . Crush . | . . . . Escape Stasis . | . . . . Rewire . | . . . . Trap . | . . . . Miscellaneous 44 | . 12 5 27 Route ------- -11/Scrapyard -10/Materials (discovered 4 exits: *Mat x2 / [*Min x2]) -10/Mines (discovered 3 exits: *Mat x2 / [Exi]) -9/Materials (discovered 4 exits: [*Mat x2] / *Min x2) History --------- Turn | Location | Event 13 | -11/Scrapyard | Upgraded with Propulsion slot (x1) 13 | -11/Scrapyard | Upgraded with Utility slot (x1) 13 | -11/Scrapyard | Upgraded with Weapon slot (x1) 42 | -11/Scrapyard | Discovered new exit (range 16) 54 | -11/Scrapyard | Entered Materials 115 | -10/Materials | Discovered new exit (range 6) 166 | -10/Materials | Discovered new exit (range 16) 274 | -10/Materials | Discovered new exit (range 16) 308 | -10/Materials | Build established: Mutant 345 | -10/Materials | Discovered new exit (range 16) 380 | -10/Materials | Central database locked down 450 | -10/Materials | Reached level 2 526 | -10/Materials | Entered Mines 563 | -10/Mines | Met a Derelict bent on vengeance 566 | -10/Mines | Received a Rocket Launcher from a helpful Derelict 593 | -10/Mines | Assembled infested the area 748 | -10/Mines | Discovered new exit (range 5) 752 | -10/Mines | Assisted by bots powering up and referring to "LRC-V3" 780 | -10/Mines | Core integrity fell below 50% 861 | -10/Mines | Build established: Scout 884 | -10/Mines | Discovered new exit (range 12) 931 | -10/Mines | Discovered new exit (range 7) 966 | -10/Mines | Entered Materials 966 | -9/Materials | Accompanied by 2 allies 967 | -9/Materials | Core integrity fell below 50% 968 | -9/Materials | Reached level 3 1002 | -9/Materials | Reached level 4 1200 | -9/Materials | Upgraded with Utility slot (x2) 1231 | -9/Materials | Discovered new exit (range 12) 1260 | -9/Materials | Reached level 5 1282 | -9/Materials | Discovered new exit (range 15) 1356 | -9/Materials | Identified exit to Mines 1550 | -9/Materials | Reached level 6 1584 | -9/Materials | Core integrity fell below 20% 1651 | -9/Materials | Discovered new exit (range 9) 1671 | -9/Materials | Destroyed by Y-45 Defender with Heavy Assault Rifle Last Messages --------------- 01598_ K-01 Serf collects debris. 01606_ Used Protomatter to restore core integrity (+141, depleted) 01608_ The unstable cave ceiling collapses. 01608_ K-01 Serf collects debris. 01609_ Connecting with Terminal... >>Recall(Reinforcements) Establishing remote squad link... Recalled reinforcement squad C8GV590K1Y. >>Enumerate(Reinforcements) Retrieving latest reported positions... No active reinforcement squads found. 01612_ The unstable cave ceiling collapses. 01612_ K-01 Serf collects debris. 01623_ Dropped Med. Laser. 01624_ Acquired Hvy. Mace. 01626_ K-01 Serf collects debris. 01641_ VTOL Module destroyed. 01644_ K-01 Serf collects debris. 01644_ Imp. Terrain Scanner destroyed. 01651_ EXIT=FOUND Map ----- +----------------------------------------------------+ | ###### /#### ### T # ## !!## | | ###?## %###? ## " ! # # ## !!## | | ###### //#### ### " !!## | | ###?## *=####+### # !!## | | ###### #? # """ # ###+####+##[ /#? | | #?#### # # """ # # ## //## | | ###### # """ # """ # # """" ####### | | ###### + """ # # # """" #####?? | | # """ # # # """" #####?# | | # ######### # #??#?## | | #############?## # """ #####?? | | ######################### # """ ###??#? | | #?#??##?######?#?######## # """ #?##??# | | #######?##?##??########## # #?##?## | | ###?##?#??##?#????####?## ##########????## | | ?#??####????##???#?????## #?#??##??#??#??? | | ??#?####??#???#####??#### #?#?##?#??#??#?? | | ####?????#?#??#?#???????# #####?##???????? | | ? ? #?##??#?#??#??????# ##???#?#?##???#? | | ???? ??#??#??#??#?##???# ########?#????#? | | ? ?? ?????#????????#?##?# #??#??#????????? | | ? ???????#????????????## ####??????#????? | | ? ??????????????????# ########?????? | | ?? ?? ??????????????#??# #?????? | | ?????????????????????# < #?????? | | ???????????????????????# @ #?????? | | ????????????????????#Y ###+####?????? | | ????????????????????####+###????????????? | | ????????????????????????????????????????? | | ????????????????????????????????????????? | | #?????????????????????????????????????????? | | ?????????????????????????????????????????? | | ?????????????????????????????????????????? | | ? ??"?#?????????????????? ????????????????? | | "??????#???????????#?? ??? R?????????????? | | ????????#????????#?#?#?????"???#? ???????? | | ?????#??????????##??##? ???? ???????????? | | ? ?""??????????????#????#??#??????????????? | | #??#????##?????????????##????#??????? | | ############???####?###?##??#???????#?????? | | ############?##########?#####?#???#???????? | | ##############?###############?????#??????? | | ######??######?###################???#??#?? | | ################??##############??##??????? | | #################?#################????##?? | | ####### ###### ###??#?????? | | ####### """"""" ##?### *** ########???? | | ### """"""" ###### * ** ###??#?#???? | | """### """"""" ###### * #?####??#?#? | | """### """"""" ###### [ #########?## | +----------------------------------------------------+ Best States ------------- Heat Dissipation 37 Energy Generation 14 Energy Capacity 280 Matter Stores 300 Matter Capacity 300 Sight Range 16 Robot Scan Range 16 Terrain Scan Range 16 Terrain Scan Density 310 Evasion (%) 62 Offensive Hacking 15 Defensive Hacking 10 Item Schematics ----------------- None Robot Schematics ------------------ None Fabricated ------------ Nothing Alien Tech Used ----------------- None Achievements -------------- None Challenges ------------ None RPGLIKE | -11 -10 -10 -9 --------- Run | Scr Mat Min Mat Levels Raised 5 | . 1 . 4 XP Earned 10908 | 3000 1849 1047 5012 XP Spent 8540 | 2750 200 1370 4220 Upgrades 28 | 7 1 11 9 Propulsion Slot 1 | 1 . . . Utility Slot 3 | 1 . . 2 Weapon Slot 1 | 1 . . . Heat Dissipation 2 | . . . 2 Mass Support 1 | 1 . . . Inventory Capacity 2 | 2 . . . Sensor Range 8 | . . 8 . Terrain Scan Density 3 | . . 3 . Ranged Accuracy 2 | 1 . . 1 Hack Attack % 3 | . 1 . 2 Hack Defense % 2 | . . . 2 Protomatter Created 285 | . 69 . 216 Integrity Restored 930 | . 204 114 612 Core 930 | . 204 114 612 Protomatter Decayed 39 | . . . 39 Game ------ Seed FireMediumGuard Manual? 0 Play Time 00:24:14 Cumulative 162.4 hours Start 2020.01.29 @ 16:08:31 End 2020.01.29 @ 16:25:43 Sessions 1 Manual Loads 0 Difficulty Rogue Special Mode Winter2019/RPGLIKE Game No. 221 Rogue 221 Adventurer 0 Explorer 0 Win Type - Total 7 Types 2/1/0/1/0/3/0 Lore% 93 Gallery% 91 Achievement% 70 Wizard Run 0 Options --------- ASCII 0 Keyboard 0 Movement Numpad Keybinds 0 Fullscreen 1 Font 24/Smallcaps Map View 76x50 Tactical HUD 1 Map Filters NONE Filters NONE Steam 1 RUN: 17daa940-d788-43e3-b938-2ee4a1f59a60